[Event "Titled Tuesday Blitz August 17 2021"]
[White "Chernov, Mikhail"]
[Black "Krysa, Leandro"]
[WhiteFideId "24143170"]
[BlackFideId "116807"]
[WhiteElo "2244"]
[BlackElo "2490"]
[Result "0-1"]
[Round "03"]
[TimeControl "180+1"]
[Date "2021.08.18"]
[WhiteClock "0:00:09"]
[BlackClock "0:00:09"]

1. e4 {[%clk 0:03:00]}  c5 {[%clk 0:02:59]} 2. Nf3 {[%clk 0:03:00]}  e6 {[%clk 0:02:58]} 3. d4 {[%clk 0:02:55]}  cxd4 {[%clk 0:02:59]} 4. Nxd4 {[%clk 0:02:55]}  a6 {[%clk 0:03:00]} 5. Be2 {[%clk 0:02:55]}  Nf6 {[%clk 0:02:40]} 6. Nc3 {[%clk 0:02:52]}  d6 {[%clk 0:02:37]} 7. O-O {[%clk 0:02:52]}  b5 {[%clk 0:02:36]} 8. Be3 {[%clk 0:02:53]}  Bb7 {[%clk 0:02:33]} 9. f3 {[%clk 0:02:51]}  Nbd7 {[%clk 0:02:32]} 10. Kh1 {[%clk 0:02:50]}  Be7 {[%clk 0:02:27]} 11. Qe1 {[%clk 0:02:32]}  b4 {[%clk 0:02:25]} 12. Na4 {[%clk 0:02:28]}  d5 {[%clk 0:02:26]} 13. Qg3 {[%clk 0:02:13]}  dxe4 {[%clk 0:02:17]} 14. Qxg7 {[%clk 0:02:06]}  Rg8 {[%clk 0:02:17]} 15. Qh6 {[%clk 0:02:03]}  Rg6 {[%clk 0:02:18]} 16. Qh3 {[%clk 0:02:02]}  Qa5 {[%clk 0:02:13]} 17. b3 {[%clk 0:01:54]}  Qh5 {[%clk 0:02:08]} 18. Qxh5 {[%clk 0:01:50]}  Nxh5 {[%clk 0:02:09]} 19. fxe4 {[%clk 0:01:42]}  Nhf6 {[%clk 0:02:05]} 20. Rae1 {[%clk 0:01:28]}  Bxe4 {[%clk 0:01:55]} 21. Bf3 {[%clk 0:01:24]}  Bxf3 {[%clk 0:00:36]} 22. Rxf3 {[%clk 0:01:24]}  Nd5 {[%clk 0:00:34]} 23. Bg1 {[%clk 0:01:18]}  Bd6 {[%clk 0:00:34]} 24. Nb2 {[%clk 0:01:13]}  Be5 {[%clk 0:00:33]} 25. Nc4 {[%clk 0:01:09]}  Bxd4 {[%clk 0:00:33]} 26. Bxd4 {[%clk 0:01:10]}  Kf8 {[%clk 0:00:32]} 27. Nd6 {[%clk 0:01:02]}  f5 {[%clk 0:00:29]} 28. h3 {[%clk 0:00:35]}  Kg8 {[%clk 0:00:29]} 29. Nc4 {[%clk 0:00:34]}  Rf8 {[%clk 0:00:28]} 30. Be5 {[%clk 0:00:28]}  h5 {[%clk 0:00:26]} 31. Bd6 {[%clk 0:00:28]}  Rc8 {[%clk 0:00:25]} 32. Kh2 {[%clk 0:00:26]}  Kh7 {[%clk 0:00:25]} 33. Bg3 {[%clk 0:00:24]}  Rcg8 {[%clk 0:00:24]} 34. Re2 {[%clk 0:00:21]}  Nc5 {[%clk 0:00:22]} 35. Be1 {[%clk 0:00:19]}  Ne4 {[%clk 0:00:21]} 36. Ne5 {[%clk 0:00:19]}  R6g7 {[%clk 0:00:21]} 37. Nd3 {[%clk 0:00:13]}  a5 {[%clk 0:00:20]} 38. Nf4 {[%clk 0:00:12]}  Nxf4 {[%clk 0:00:18]} 39. Rxf4 {[%clk 0:00:13]}  Rc8 {[%clk 0:00:16]} 40. Rh4 {[%clk 0:00:12]}  Kg6 {[%clk 0:00:16]} 41. g4 {[%clk 0:00:11]}  Rgc7 {[%clk 0:00:13]} 42. gxf5+ {[%clk 0:00:09]}  exf5 {[%clk 0:00:12]} 43. Rg2+ {[%clk 0:00:08]}  Kf6 {[%clk 0:00:12]} 44. Rxh5 {[%clk 0:00:07]}  Rxc2 {[%clk 0:00:13]} 45. Rh6+ {[%clk 0:00:08]}  Ke5 {[%clk 0:00:13]} 46. Ra6 {[%clk 0:00:08]}  Rxg2+ {[%clk 0:00:13]} 47. Kxg2 {[%clk 0:00:08]}  Rc2+ {[%clk 0:00:13]} 48. Kf1 {[%clk 0:00:09]}  Rxa2 {[%clk 0:00:12]} 49. Ra8 {[%clk 0:00:10]}  Kf4 {[%clk 0:00:12]} 50. h4 {[%clk 0:00:09]}  Ng3+ {[%clk 0:00:12]} 51. Bxg3+ {[%clk 0:00:09]}  Kxg3 {[%clk 0:00:13]} 52. h5 {[%clk 0:00:09]}  Kf3 {[%clk 0:00:12]} 53. Kg1 {[%clk 0:00:10]}  Kg3 {[%clk 0:00:10]} 54. Kf1 {[%clk 0:00:10]}  Rh2 {[%clk 0:00:09]} 55. Rxa5 {[%clk 0:00:09]}  Rxh5 {[%clk 0:00:06]} 56. Rb5 {[%clk 0:00:09]}  Rh1+ {[%clk 0:00:06]} 57. Ke2 {[%clk 0:00:09]}  f4 {[%clk 0:00:07]} 58. Rg5+ {[%clk 0:00:07]}  Kh4 {[%clk 0:00:07]} 59. Rg8 {[%clk 0:00:07]}  Rb1 {[%clk 0:00:07]} 60. Kf2 {[%clk 0:00:06]}  Rxb3 {[%clk 0:00:07]} 61. Rf8 {[%clk 0:00:07]}  Kg4 {[%clk 0:00:07]} 62. Rg8+ {[%clk 0:00:07]}  Kf5 {[%clk 0:00:07]} 63. Rf8+ {[%clk 0:00:08]}  Ke5 {[%clk 0:00:08]} 64. Re8+ {[%clk 0:00:08]}  Kd4 {[%clk 0:00:08]} 65. Rd8+ {[%clk 0:00:08]}  Kc4 {[%clk 0:00:08]} 66. Rc8+ {[%clk 0:00:08]}  Kd3 {[%clk 0:00:09]} 67. Kf3 {[%clk 0:00:08]}  Kd2+ {[%clk 0:00:08]} 68. Kxf4 {[%clk 0:00:09]}  Rc3 {[%clk 0:00:08]} 69. Rd8+ {[%clk 0:00:08]}  Kc2 {[%clk 0:00:08]} 70. Ke4 {[%clk 0:00:09]}  b3 {[%clk 0:00:08]} 71. Rh8 {[%clk 0:00:09]}  b2 {[%clk 0:00:08]} 72. Rh2+ {[%clk 0:00:09]}  Kb3 {[%clk 0:00:09]} 0-1


[Site "https://www.chess.com"]

[Event "Titled Tuesday Blitz August 17 2021"]
[White "Dang, Hoang Son"]
[Black "Rozhkov, Viacheslav"]
[WhiteFideId "12402435"]
[BlackFideId "4181484"]
[WhiteElo "2248"]
[BlackElo "2324"]
[Result "1-0"]
[Round "03"]
[TimeControl "180+1"]
[Date "2021.08.17"]
[WhiteClock "0:00:37"]
[BlackClock "0:00:08"]

1. d4 {[%clk 0:03:00]}  d5 {[%clk 0:02:54]} 2. c4 {[%clk 0:03:00]}  dxc4 {[%clk 0:02:54]} 3. Nf3 {[%clk 0:03:01]}  Nf6 {[%clk 0:02:54]} 4. e3 {[%clk 0:03:01]}  e6 {[%clk 0:02:53]} 5. Bxc4 {[%clk 0:03:01]}  a6 {[%clk 0:02:53]} 6. O-O {[%clk 0:03:01]}  c5 {[%clk 0:02:54]} 7. b3 {[%clk 0:02:58]}  b5 {[%clk 0:02:53]} 8. Be2 {[%clk 0:02:58]}  Bb7 {[%clk 0:02:53]} 9. a4 {[%clk 0:02:58]}  b4 {[%clk 0:02:53]} 10. Nbd2 {[%clk 0:02:57]}  Nbd7 {[%clk 0:02:53]} 11. Nc4 {[%clk 0:02:57]}  Rc8 {[%clk 0:02:47]} 12. Bb2 {[%clk 0:02:55]}  Qc7 {[%clk 0:02:47]} 13. Rc1 {[%clk 0:02:52]}  Qb8 {[%clk 0:02:48]} 14. Nfe5 {[%clk 0:02:50]}  Nxe5 {[%clk 0:02:35]} 15. dxe5 {[%clk 0:02:45]}  Nd5 {[%clk 0:02:32]} 16. Nd6+ {[%clk 0:02:35]}  Bxd6 {[%clk 0:02:31]} 17. exd6 {[%clk 0:02:36]}  O-O {[%clk 0:02:26]} 18. e4 {[%clk 0:02:34]}  Nf4 {[%clk 0:02:20]} 19. Bc4 {[%clk 0:02:13]}  Ng6 {[%clk 0:01:43]} 20. e5 {[%clk 0:01:57]}  Nf4 {[%clk 0:01:25]} 21. Qg4 {[%clk 0:01:40]}  Nxg2 {[%clk 0:01:12]} 22. Rfd1 {[%clk 0:01:24]}  Qa8 {[%clk 0:01:10]} 23. Rd3 {[%clk 0:01:04]}  h5 {[%clk 0:00:54]} 24. Qg5 {[%clk 0:01:03]}  h4 {[%clk 0:00:44]} 25. h3 {[%clk 0:00:56]}  Be4 {[%clk 0:00:39]} 26. Rd2 {[%clk 0:00:44]}  Rcd8 {[%clk 0:00:15]} 27. Bf1 {[%clk 0:00:38]}  f6 {[%clk 0:00:08]} 28. exf6 {[%clk 0:00:37]} 1-0


[Site "https://www.chess.com"]

[Event "Titled Tuesday Blitz August 17 2021"]
[White "Demchenko, Anton"]
[Black "Estrada Nieto, Julian"]
[WhiteFideId "4160258"]
[BlackFideId "5101018"]
[WhiteElo "2583"]
[BlackElo "2270"]
[Result "1-0"]
[Round "03"]
[TimeControl "180+1"]
[Date "2021.08.17"]
[WhiteClock "0:01:27"]
[BlackClock "0:00:14"]

1. e4 {[%clk 0:03:00]}  e5 {[%clk 0:02:59]} 2. Nf3 {[%clk 0:03:00]}  Nc6 {[%clk 0:02:59]} 3. Bc4 {[%clk 0:03:01]}  Bc5 {[%clk 0:02:58]} 4. d3 {[%clk 0:03:01]}  d6 {[%clk 0:02:59]} 5. Nc3 {[%clk 0:03:02]}  Nf6 {[%clk 0:02:58]} 6. Na4 {[%clk 0:03:00]}  Bb6 {[%clk 0:02:31]} 7. c3 {[%clk 0:03:00]}  O-O {[%clk 0:02:28]} 8. O-O {[%clk 0:03:00]}  Be6 {[%clk 0:02:21]} 9. Bxe6 {[%clk 0:02:57]}  fxe6 {[%clk 0:02:21]} 10. Nxb6 {[%clk 0:02:57]}  axb6 {[%clk 0:02:20]} 11. a4 {[%clk 0:02:57]}  Qe8 {[%clk 0:02:19]} 12. b4 {[%clk 0:02:54]}  Ne7 {[%clk 0:02:12]} 13. h3 {[%clk 0:02:51]}  Ng6 {[%clk 0:02:12]} 14. Be3 {[%clk 0:02:50]}  h6 {[%clk 0:02:11]} 15. c4 {[%clk 0:02:45]}  Nh5 {[%clk 0:02:10]} 16. Kh2 {[%clk 0:02:41]}  Nhf4 {[%clk 0:01:33]} 17. Ng1 {[%clk 0:02:23]}  Ne7 {[%clk 0:01:15]} 18. g3 {[%clk 0:02:19]}  Nfg6 {[%clk 0:01:14]} 19. Qg4 {[%clk 0:02:17]}  Qf7 {[%clk 0:01:11]} 20. a5 {[%clk 0:02:11]}  bxa5 {[%clk 0:01:00]} 21. bxa5 {[%clk 0:02:00]}  Nc6 {[%clk 0:00:58]} 22. Bd2 {[%clk 0:02:00]}  Nd4 {[%clk 0:00:56]} 23. Ra2 {[%clk 0:01:52]}  Kh7 {[%clk 0:00:37]} 24. Bc3 {[%clk 0:01:48]}  Nf3+ {[%clk 0:00:34]} 25. Nxf3 {[%clk 0:01:45]}  Qxf3 {[%clk 0:00:34]} 26. Qxf3 {[%clk 0:01:40]}  Rxf3 {[%clk 0:00:34]} 27. Rd1 {[%clk 0:01:41]}  Ne7 {[%clk 0:00:29]} 28. Kg2 {[%clk 0:01:40]}  Rff8 {[%clk 0:00:28]} 29. Rb2 {[%clk 0:01:37]}  Ra7 {[%clk 0:00:19]} 30. Rdb1 {[%clk 0:01:37]}  Rb8 {[%clk 0:00:19]} 31. f4 {[%clk 0:01:30]}  Nc6 {[%clk 0:00:18]} 32. Rb5 {[%clk 0:01:28]}  exf4 {[%clk 0:00:14]} 33. gxf4 {[%clk 0:01:28]}  Nxa5 {[%clk 0:00:14]} 34. Rxa5 {[%clk 0:01:27]} 1-0


[Site "https://www.chess.com"]

[Event "Titled Tuesday Blitz August 17 2021"]
[White "Demidov, Mikhail"]
[Black "Bodnar, Nikolay"]
[WhiteFideId "4197143"]
[BlackFideId "14106469"]
[WhiteElo "2559"]
[BlackElo "2296"]
[Result "1/2-1/2"]
[Round "03"]
[TimeControl "180+1"]
[Date "2021.08.17"]
[WhiteClock "0:00:10"]
[BlackClock "0:00:09"]

1. Nf3 {[%clk 0:03:00]}  Nf6 {[%clk 0:03:00]} 2. g3 {[%clk 0:03:01]}  g6 {[%clk 0:03:00]} 3. b3 {[%clk 0:02:58]}  Bg7 {[%clk 0:03:00]} 4. Bb2 {[%clk 0:02:58]}  O-O {[%clk 0:03:01]} 5. Bg2 {[%clk 0:02:57]}  d5 {[%clk 0:03:01]} 6. c4 {[%clk 0:02:57]}  dxc4 {[%clk 0:02:57]} 7. bxc4 {[%clk 0:02:57]}  c5 {[%clk 0:02:57]} 8. O-O {[%clk 0:02:57]}  Nc6 {[%clk 0:02:58]} 9. d3 {[%clk 0:02:56]}  Re8 {[%clk 0:02:55]} 10. Nc3 {[%clk 0:02:55]}  Nd4 {[%clk 0:02:44]} 11. Rb1 {[%clk 0:02:54]}  Bg4 {[%clk 0:02:42]} 12. Nd2 {[%clk 0:02:50]}  Rb8 {[%clk 0:02:39]} 13. h3 {[%clk 0:02:48]}  Bd7 {[%clk 0:02:38]} 14. e3 {[%clk 0:02:45]}  Nc6 {[%clk 0:02:38]} 15. Qe2 {[%clk 0:02:44]}  Qc8 {[%clk 0:02:32]} 16. Kh2 {[%clk 0:02:43]}  Rd8 {[%clk 0:02:30]} 17. Rfd1 {[%clk 0:02:42]}  Bf5 {[%clk 0:02:29]} 18. Nde4 {[%clk 0:02:26]}  Nxe4 {[%clk 0:02:21]} 19. dxe4 {[%clk 0:02:27]}  Be6 {[%clk 0:02:20]} 20. Nd5 {[%clk 0:02:18]}  Bxb2 {[%clk 0:02:12]} 21. Rxb2 {[%clk 0:02:16]}  Rd7 {[%clk 0:02:09]} 22. f4 {[%clk 0:02:14]}  f6 {[%clk 0:02:02]} 23. Qc2 {[%clk 0:02:09]}  Bf7 {[%clk 0:02:01]} 24. Qc3 {[%clk 0:02:07]}  Qd8 {[%clk 0:01:50]} 25. Rbd2 {[%clk 0:02:06]}  Kf8 {[%clk 0:01:41]} 26. h4 {[%clk 0:02:01]}  Bxd5 {[%clk 0:01:32]} 27. exd5 {[%clk 0:01:59]}  Nb4 {[%clk 0:01:32]} 28. e4 {[%clk 0:01:57]}  Kg7 {[%clk 0:01:28]} 29. e5 {[%clk 0:01:56]}  Qf8 {[%clk 0:01:16]} 30. a3 {[%clk 0:01:41]}  Na6 {[%clk 0:01:15]} 31. Bh3 {[%clk 0:01:41]}  Rdd8 {[%clk 0:01:13]} 32. d6 {[%clk 0:01:39]}  exd6 {[%clk 0:01:10]} 33. Rxd6 {[%clk 0:01:29]}  f5 {[%clk 0:00:59]} 34. Qa5 {[%clk 0:01:09]}  Rxd6 {[%clk 0:00:56]} 35. Rxd6 {[%clk 0:01:08]}  Qe7 {[%clk 0:00:54]} 36. Bg2 {[%clk 0:01:07]}  Rc8 {[%clk 0:00:43]} 37. Bd5 {[%clk 0:00:51]}  Kh6 {[%clk 0:00:34]} 38. Kh3 {[%clk 0:00:48]}  Nc7 {[%clk 0:00:24]} 39. Bxb7 {[%clk 0:00:42]}  Rb8 {[%clk 0:00:23]} 40. Qxa7 {[%clk 0:00:38]}  Na6 {[%clk 0:00:22]} 41. Qxa6 {[%clk 0:00:34]}  Rxb7 {[%clk 0:00:21]} 42. Qa5 {[%clk 0:00:24]}  Rb1 {[%clk 0:00:19]} 43. Qxc5 {[%clk 0:00:16]}  Qb7 {[%clk 0:00:18]} 44. Qd5 {[%clk 0:00:15]}  Qb2 {[%clk 0:00:16]} 45. Rd7 {[%clk 0:00:14]}  Qf2 {[%clk 0:00:08]} 46. Rxh7+ {[%clk 0:00:09]}  Kxh7 {[%clk 0:00:08]} 47. Qf7+ {[%clk 0:00:10]}  Kh6 {[%clk 0:00:08]} 48. Qf8+ {[%clk 0:00:10]}  Kh7 {[%clk 0:00:08]} 49. Qf7+ {[%clk 0:00:10]}  Kh6 {[%clk 0:00:09]} 50. Qf8+ {[%clk 0:00:10]}  Kh7 {[%clk 0:00:09]} 51. Qf7+ {[%clk 0:00:10]} 1/2-1/2


[Site "https://www.chess.com"]

[Event "Titled Tuesday Blitz August 17 2021"]
[White "Esipenko, Andrey"]
[Black "Karttunen, Mika"]
[WhiteFideId "24175439"]
[BlackFideId "502081"]
[WhiteElo "2595"]
[BlackElo "2343"]
[Result "1-0"]
[Round "03"]
[TimeControl "180+1"]
[Date "2021.08.17"]
[WhiteClock "0:00:50"]
[BlackClock "0:00:12"]

1. d4 {[%clk 0:03:00]}  Nf6 {[%clk 0:02:59]} 2. Nf3 {[%clk 0:03:01]}  g6 {[%clk 0:02:58]} 3. Nc3 {[%clk 0:02:58]}  d5 {[%clk 0:02:56]} 4. Bg5 {[%clk 0:02:53]}  Nbd7 {[%clk 0:02:49]} 5. e3 {[%clk 0:02:53]}  Bg7 {[%clk 0:02:48]} 6. Ne5 {[%clk 0:02:33]}  O-O {[%clk 0:02:39]} 7. f4 {[%clk 0:02:31]}  c5 {[%clk 0:02:12]} 8. a3 {[%clk 0:02:22]}  cxd4 {[%clk 0:01:48]} 9. exd4 {[%clk 0:02:20]}  Nb6 {[%clk 0:01:48]} 10. Bd3 {[%clk 0:02:18]}  Bd7 {[%clk 0:01:19]} 11. O-O {[%clk 0:02:15]}  Rc8 {[%clk 0:01:19]} 12. Qe2 {[%clk 0:02:14]}  Bf5 {[%clk 0:01:09]} 13. g4 {[%clk 0:02:10]}  Bxd3 {[%clk 0:01:07]} 14. cxd3 {[%clk 0:02:11]}  Nbd7 {[%clk 0:00:41]} 15. f5 {[%clk 0:01:30]}  Qb6 {[%clk 0:00:35]} 16. Be3 {[%clk 0:01:30]}  Qd6 {[%clk 0:00:21]} 17. Bf2 {[%clk 0:01:28]}  a6 {[%clk 0:00:19]} 18. Rae1 {[%clk 0:01:27]}  Nb8 {[%clk 0:00:18]} 19. Bg3 {[%clk 0:01:27]}  Qd8 {[%clk 0:00:17]} 20. g5 {[%clk 0:01:13]}  Nh5 {[%clk 0:00:17]} 21. fxg6 {[%clk 0:01:14]}  hxg6 {[%clk 0:00:17]} 22. Nxf7 {[%clk 0:01:12]}  Nxg3 {[%clk 0:00:15]} 23. hxg3 {[%clk 0:01:05]}  Qd7 {[%clk 0:00:13]} 24. Ne5 {[%clk 0:00:54]}  Qe6 {[%clk 0:00:12]} 25. Rxf8+ {[%clk 0:00:51]}  Rxf8 {[%clk 0:00:13]} 26. Qg2 {[%clk 0:00:52]}  Nc6 {[%clk 0:00:12]} 27. Qxd5 {[%clk 0:00:50]}  Qxd5 {[%clk 0:00:11]} 28. Nxd5 {[%clk 0:00:51]}  Bxe5 {[%clk 0:00:11]} 29. dxe5 {[%clk 0:00:50]}  Rd8 {[%clk 0:00:11]} 30. Nf4 {[%clk 0:00:50]}  Kg7 {[%clk 0:00:11]} 31. Ne6+ {[%clk 0:00:50]}  Kf7 {[%clk 0:00:11]} 32. Nxd8+ {[%clk 0:00:51]}  Nxd8 {[%clk 0:00:12]} 33. d4 {[%clk 0:00:52]}  Ke6 {[%clk 0:00:12]} 34. Kf2 {[%clk 0:00:51]}  Kd5 {[%clk 0:00:12]} 35. Ke3 {[%clk 0:00:52]}  Ne6 {[%clk 0:00:13]} 36. Rc1 {[%clk 0:00:51]}  Nxg5 {[%clk 0:00:12]} 37. Rc7 {[%clk 0:00:51]}  Ke6 {[%clk 0:00:12]} 38. Rxb7 {[%clk 0:00:50]} 1-0


[Site "https://www.chess.com"]

[Event "Titled Tuesday Blitz August 17 2021"]
[White "Fajdetic, Hrvoje"]
[Black "Cunha, Lucas Aguiar"]
[WhiteFideId "14501945"]
[BlackFideId "2125404"]
[WhiteElo "2153"]
[BlackElo "2361"]
[Result "0-1"]
[Round "03"]
[TimeControl "180+1"]
[Date "2021.08.18"]
[WhiteClock "0:00:04"]
[BlackClock "0:00:04"]

1. d4 {[%clk 0:03:00]}  Nf6 {[%clk 0:02:59]} 2. Bf4 {[%clk 0:03:00]}  d5 {[%clk 0:02:59]} 3. e3 {[%clk 0:03:00]}  c5 {[%clk 0:03:00]} 4. Nc3 {[%clk 0:03:00]}  a6 {[%clk 0:02:59]} 5. dxc5 {[%clk 0:03:00]}  Nc6 {[%clk 0:02:57]} 6. Nf3 {[%clk 0:03:00]}  Bg4 {[%clk 0:02:56]} 7. Be2 {[%clk 0:03:00]}  e6 {[%clk 0:02:56]} 8. Na4 {[%clk 0:02:59]}  Ne4 {[%clk 0:02:53]} 9. O-O {[%clk 0:02:32]}  Nxc5 {[%clk 0:02:52]} 10. Nxc5 {[%clk 0:02:32]}  Bxc5 {[%clk 0:02:53]} 11. Ne5 {[%clk 0:02:25]}  Bxe2 {[%clk 0:02:37]} 12. Qxe2 {[%clk 0:02:26]}  O-O {[%clk 0:02:35]} 13. c4 {[%clk 0:02:19]}  Nxe5 {[%clk 0:02:29]} 14. Bxe5 {[%clk 0:02:19]}  dxc4 {[%clk 0:02:29]} 15. Qxc4 {[%clk 0:02:19]}  Rc8 {[%clk 0:02:29]} 16. Qg4 {[%clk 0:02:16]}  g6 {[%clk 0:02:24]} 17. Qf4 {[%clk 0:01:49]}  Re8 {[%clk 0:01:43]} 18. Rfd1 {[%clk 0:01:41]}  Qe7 {[%clk 0:01:43]} 19. b4 {[%clk 0:01:08]}  Bxb4 {[%clk 0:01:34]} 20. Rab1 {[%clk 0:01:08]}  Bc3 {[%clk 0:01:15]} 21. Bd6 {[%clk 0:00:50]}  Qd7 {[%clk 0:01:12]} 22. Be5 {[%clk 0:00:25]}  Bxe5 {[%clk 0:01:10]} 23. Qxe5 {[%clk 0:00:23]}  Qc7 {[%clk 0:01:09]} 24. Qf6 {[%clk 0:00:21]}  Red8 {[%clk 0:01:05]} 25. Re1 {[%clk 0:00:14]}  Rd5 {[%clk 0:01:03]} 26. g4 {[%clk 0:00:12]}  b5 {[%clk 0:00:55]} 27. Rbc1 {[%clk 0:00:10]}  Rc5 {[%clk 0:00:55]} 28. Rcd1 {[%clk 0:00:10]}  Rc4 {[%clk 0:00:54]} 29. h3 {[%clk 0:00:09]}  Qc6 {[%clk 0:00:52]} 30. Rd2 {[%clk 0:00:07]}  Rc1 {[%clk 0:00:50]} 31. Red1 {[%clk 0:00:06]}  Rxd1+ {[%clk 0:00:50]} 32. Rxd1 {[%clk 0:00:07]}  Qc7 {[%clk 0:00:48]} 33. h4 {[%clk 0:00:07]}  Qc4 {[%clk 0:00:46]} 34. f3 {[%clk 0:00:05]}  Qc5 {[%clk 0:00:20]} 35. Rd4 {[%clk 0:00:03]}  Qc7 {[%clk 0:00:16]} 36. Kg2 {[%clk 0:00:02]}  Qc2+ {[%clk 0:00:16]} 37. Kg3 {[%clk 0:00:02]}  Qc7+ {[%clk 0:00:15]} 38. Kf2 {[%clk 0:00:02]}  Qb6 {[%clk 0:00:12]} 39. h5 {[%clk 0:00:02]}  Qc5 {[%clk 0:00:08]} 40. h6 {[%clk 0:00:01]}  Qf8 {[%clk 0:00:08]} 41. Rd7 {[%clk 0:00:01]}  Rc2+ {[%clk 0:00:06]} 42. Kg3 {[%clk 0:00:01]}  Rc8 {[%clk 0:00:05]} 43. g5 {[%clk 0:00:02]}  Re8 {[%clk 0:00:04]} 44. f4 {[%clk 0:00:02]}  e5 {[%clk 0:00:04]} 45. f5 {[%clk 0:00:02]}  gxf5 {[%clk 0:00:04]} 46. Qxf5 {[%clk 0:00:02]}  Re6 {[%clk 0:00:04]} 47. Qf3 {[%clk 0:00:01]}  Qe8 {[%clk 0:00:04]} 48. Qb7 {[%clk 0:00:02]}  Rg6 {[%clk 0:00:04]} 49. e4 {[%clk 0:00:03]}  Rxg5+ {[%clk 0:00:04]} 50. Kh4 {[%clk 0:00:04]}  Rg6 {[%clk 0:00:04]} 51. Rd8 {[%clk 0:00:04]}  Qxd8+ {[%clk 0:00:04]} 0-1


[Site "https://www.chess.com"]

[Event "Titled Tuesday Blitz August 17 2021"]
[White "Fernandez, Michael"]
[Black "Yeletsky, Ivan"]
[WhiteFideId "5803560"]
[BlackFideId "24180327"]
[WhiteElo "2110"]
[BlackElo "2344"]
[Result "0-1"]
[Round "03"]
[TimeControl "180+1"]
[Date "2021.08.17"]
[WhiteClock "0:00:12"]
[BlackClock "0:01:03"]

1. b4 {[%clk 0:03:00]}  e6 {[%clk 0:02:56]} 2. Bb2 {[%clk 0:03:00]}  Nf6 {[%clk 0:02:56]} 3. b5 {[%clk 0:03:00]}  d5 {[%clk 0:02:53]} 4. e3 {[%clk 0:02:59]}  c5 {[%clk 0:02:53]} 5. Nf3 {[%clk 0:02:56]}  a6 {[%clk 0:02:51]} 6. a4 {[%clk 0:02:56]}  Bd6 {[%clk 0:02:50]} 7. c4 {[%clk 0:02:51]}  O-O {[%clk 0:02:50]} 8. Be2 {[%clk 0:02:49]}  Nbd7 {[%clk 0:02:49]} 9. Nc3 {[%clk 0:02:41]}  Ne5 {[%clk 0:02:44]} 10. Nxe5 {[%clk 0:02:38]}  Bxe5 {[%clk 0:02:44]} 11. d4 {[%clk 0:02:34]}  cxd4 {[%clk 0:02:44]} 12. exd4 {[%clk 0:02:35]}  Bc7 {[%clk 0:02:42]} 13. c5 {[%clk 0:02:31]}  Bd7 {[%clk 0:02:29]} 14. O-O {[%clk 0:02:28]}  g6 {[%clk 0:02:26]} 15. Bc1 {[%clk 0:02:23]}  axb5 {[%clk 0:02:22]} 16. Bg5 {[%clk 0:02:16]}  bxa4 {[%clk 0:02:19]} 17. Nxa4 {[%clk 0:02:05]}  Kg7 {[%clk 0:01:56]} 18. Nb6 {[%clk 0:01:57]}  Rxa1 {[%clk 0:01:54]} 19. Qxa1 {[%clk 0:01:54]}  Bxb6 {[%clk 0:01:53]} 20. cxb6 {[%clk 0:01:49]}  Qxb6 {[%clk 0:01:54]} 21. Rb1 {[%clk 0:01:39]}  Qc7 {[%clk 0:01:52]} 22. Qa3 {[%clk 0:01:29]}  Re8 {[%clk 0:01:50]} 23. Qh3 {[%clk 0:01:19]}  Ne4 {[%clk 0:01:46]} 24. Bh6+ {[%clk 0:01:01]}  Kg8 {[%clk 0:01:44]} 25. Rc1 {[%clk 0:00:59]}  Qb6 {[%clk 0:01:40]} 26. Qe3 {[%clk 0:00:50]}  Rc8 {[%clk 0:01:38]} 27. Rxc8+ {[%clk 0:00:37]}  Bxc8 {[%clk 0:01:39]} 28. Bd3 {[%clk 0:00:37]}  Bd7 {[%clk 0:01:17]} 29. h3 {[%clk 0:00:30]}  f6 {[%clk 0:01:07]} 30. Bxe4 {[%clk 0:00:20]}  dxe4 {[%clk 0:01:08]} 31. Qf4 {[%clk 0:00:19]}  Kf7 {[%clk 0:01:04]} 32. Bg5 {[%clk 0:00:12]}  Qxd4 {[%clk 0:01:03]} 0-1


[Site "https://www.chess.com"]

[Event "Titled Tuesday Blitz August 17 2021"]
[White "Goryachkina, Aleksandra"]
[Black "Shishkov, Andrei"]
[WhiteFideId "4147103"]
[BlackFideId "4500563"]
[WhiteElo "2441"]
[BlackElo "2322"]
[Result "1-0"]
[Round "03"]
[TimeControl "180+1"]
[Date "2021.08.17"]
[WhiteClock "0:00:03"]
[BlackClock "0:00:05"]

1. e4 {[%clk 0:02:59]}  d5 {[%clk 0:02:59]} 2. exd5 {[%clk 0:02:58]}  Nf6 {[%clk 0:03:00]} 3. Nf3 {[%clk 0:02:53]}  Nxd5 {[%clk 0:03:00]} 4. d4 {[%clk 0:02:43]}  Bg4 {[%clk 0:02:59]} 5. Be2 {[%clk 0:02:42]}  e6 {[%clk 0:03:00]} 6. O-O {[%clk 0:02:41]}  Nc6 {[%clk 0:03:00]} 7. h3 {[%clk 0:02:40]}  Bh5 {[%clk 0:02:59]} 8. Nbd2 {[%clk 0:02:23]}  Be7 {[%clk 0:02:53]} 9. Re1 {[%clk 0:02:20]}  O-O {[%clk 0:02:39]} 10. Nf1 {[%clk 0:02:19]}  Bf6 {[%clk 0:02:35]} 11. c3 {[%clk 0:02:15]}  Re8 {[%clk 0:02:23]} 12. Ng3 {[%clk 0:02:13]}  Bg6 {[%clk 0:02:23]} 13. Bb5 {[%clk 0:01:59]}  a6 {[%clk 0:02:10]} 14. Bxc6 {[%clk 0:01:53]}  bxc6 {[%clk 0:02:11]} 15. a3 {[%clk 0:01:42]}  a5 {[%clk 0:02:05]} 16. Ne5 {[%clk 0:01:32]}  Bxe5 {[%clk 0:01:57]} 17. Rxe5 {[%clk 0:01:32]}  Qb8 {[%clk 0:01:42]} 18. h4 {[%clk 0:01:29]}  f6 {[%clk 0:01:36]} 19. Re1 {[%clk 0:01:25]}  h6 {[%clk 0:01:29]} 20. h5 {[%clk 0:01:24]}  Bf7 {[%clk 0:01:25]} 21. Qg4 {[%clk 0:01:22]}  Kh8 {[%clk 0:01:23]} 22. a4 {[%clk 0:01:11]}  Qb3 {[%clk 0:01:16]} 23. Qf3 {[%clk 0:01:04]}  Rab8 {[%clk 0:01:03]} 24. Ne4 {[%clk 0:01:03]}  e5 {[%clk 0:00:51]} 25. Nc5 {[%clk 0:00:59]}  Qc4 {[%clk 0:00:47]} 26. Nd7 {[%clk 0:00:35]}  Rbd8 {[%clk 0:00:44]} 27. Nxe5 {[%clk 0:00:32]}  fxe5 {[%clk 0:00:28]} 28. Qxf7 {[%clk 0:00:32]}  Rf8 {[%clk 0:00:25]} 29. Qg6 {[%clk 0:00:28]}  Rd6 {[%clk 0:00:22]} 30. Qg3 {[%clk 0:00:20]}  exd4 {[%clk 0:00:19]} 31. cxd4 {[%clk 0:00:20]}  Qxd4 {[%clk 0:00:19]} 32. Ra3 {[%clk 0:00:19]}  Rdf6 {[%clk 0:00:17]} 33. Rf1 {[%clk 0:00:12]}  Nf4 {[%clk 0:00:12]} 34. Bxf4 {[%clk 0:00:11]}  Rxf4 {[%clk 0:00:13]} 35. Re3 {[%clk 0:00:04]}  Rg4 {[%clk 0:00:12]} 36. Qe5 {[%clk 0:00:03]}  Qd5 {[%clk 0:00:07]} 37. Qxd5 {[%clk 0:00:03]}  cxd5 {[%clk 0:00:08]} 38. Rc1 {[%clk 0:00:03]}  Rxa4 {[%clk 0:00:06]} 39. Re7 {[%clk 0:00:03]}  Rb4 {[%clk 0:00:05]} 40. Rcxc7 {[%clk 0:00:03]}  Rg8 {[%clk 0:00:06]} 41. Red7 {[%clk 0:00:02]}  Rxb2 {[%clk 0:00:06]} 42. Rxd5 {[%clk 0:00:03]}  a4 {[%clk 0:00:05]} 43. Ra7 {[%clk 0:00:03]}  Ra2 {[%clk 0:00:04]} 44. Rd4 {[%clk 0:00:03]}  Rf8 {[%clk 0:00:03]} 45. f3 {[%clk 0:00:03]}  Re8 {[%clk 0:00:03]} 46. Rg4 {[%clk 0:00:03]}  Rg8 {[%clk 0:00:02]} 47. Raxa4 {[%clk 0:00:02]}  Rxa4 {[%clk 0:00:03]} 48. Rxa4 {[%clk 0:00:03]}  Rf8 {[%clk 0:00:03]} 49. Kf2 {[%clk 0:00:03]}  Rf5 {[%clk 0:00:02]} 50. g4 {[%clk 0:00:03]}  Rb5 {[%clk 0:00:02]} 51. Ra8+ {[%clk 0:00:03]}  Kh7 {[%clk 0:00:03]} 52. Re8 {[%clk 0:00:03]}  Rb2+ {[%clk 0:00:04]} 53. Kg3 {[%clk 0:00:03]}  Rb3 {[%clk 0:00:05]} 54. Re4 {[%clk 0:00:03]}  Rb4 {[%clk 0:00:05]} 55. Rxb4 {[%clk 0:00:03]} 1-0


[Site "https://www.chess.com"]